[Event "Titled Tuesday Blitz May 18 2021"]
[White "Abdusattorov, Nodirbek"]
[Black "Andreikin, Dmitry"]
[WhiteFideId "14204118"]
[BlackFideId "4158814"]
[WhiteElo "2662"]
[BlackElo "2782"]
[Result "1/2-1/2"]
[Round "07"]
[TimeControl "180+1"]
[Date "2021.05.18"]
[WhiteClock "0:00:13"]
[BlackClock "0:00:04"]

1. d4 {[%clk 0:03:00]}  d5 {[%clk 0:02:56]} 2. c4 {[%clk 0:03:00]}  c6 {[%clk 0:02:56]} 3. Nf3 {[%clk 0:02:59]}  Nf6 {[%clk 0:02:56]} 4. g3 {[%clk 0:02:58]}  b5 {[%clk 0:02:53]} 5. cxd5 {[%clk 0:02:56]}  cxd5 {[%clk 0:02:53]} 6. Bg2 {[%clk 0:02:56]}  e6 {[%clk 0:02:49]} 7. O-O {[%clk 0:02:56]}  Be7 {[%clk 0:02:47]} 8. Ne5 {[%clk 0:02:51]}  O-O {[%clk 0:02:45]} 9. Nd2 {[%clk 0:02:51]}  Bb7 {[%clk 0:02:42]} 10. Nb3 {[%clk 0:02:51]}  Nbd7 {[%clk 0:02:31]} 11. Nd3 {[%clk 0:02:48]}  a5 {[%clk 0:02:14]} 12. Bd2 {[%clk 0:02:47]}  b4 {[%clk 0:02:05]} 13. Rc1 {[%clk 0:02:36]}  Ba6 {[%clk 0:01:57]} 14. Nbc5 {[%clk 0:02:33]}  Bb5 {[%clk 0:01:47]} 15. a4 {[%clk 0:01:58]}  bxa3 {[%clk 0:01:35]} 16. bxa3 {[%clk 0:01:58]}  Bxd3 {[%clk 0:01:31]} 17. Nxd3 {[%clk 0:01:48]}  Bxa3 {[%clk 0:01:29]} 18. Ra1 {[%clk 0:01:48]}  Be7 {[%clk 0:01:11]} 19. Qb3 {[%clk 0:01:44]}  Ne4 {[%clk 0:01:05]} 20. Bxe4 {[%clk 0:01:26]}  dxe4 {[%clk 0:01:05]} 21. Nf4 {[%clk 0:01:27]}  Nf6 {[%clk 0:01:00]} 22. Qa4 {[%clk 0:01:23]}  g5 {[%clk 0:00:46]} 23. Ng2 {[%clk 0:01:20]}  Nd5 {[%clk 0:00:39]} 24. Bxa5 {[%clk 0:01:04]}  Qc8 {[%clk 0:00:35]} 25. Rfc1 {[%clk 0:00:57]}  Qa6 {[%clk 0:00:32]} 26. Qd1 {[%clk 0:00:52]}  Rfc8 {[%clk 0:00:16]} 27. Bd2 {[%clk 0:00:48]}  Rxc1 {[%clk 0:00:14]} 28. Rxc1 {[%clk 0:00:48]}  Rc8 {[%clk 0:00:11]} 29. Rxc8+ {[%clk 0:00:41]}  Qxc8 {[%clk 0:00:11]} 30. Ne3 {[%clk 0:00:41]}  h6 {[%clk 0:00:09]} 31. Qb1 {[%clk 0:00:35]}  Nxe3 {[%clk 0:00:07]} 32. Bxe3 {[%clk 0:00:35]}  Qc6 {[%clk 0:00:08]} 33. g4 {[%clk 0:00:33]}  Bf6 {[%clk 0:00:06]} 34. h3 {[%clk 0:00:29]}  Qd5 {[%clk 0:00:06]} 35. Qb4 {[%clk 0:00:26]}  Kg7 {[%clk 0:00:06]} 36. Qc5 {[%clk 0:00:25]}  Kg8 {[%clk 0:00:05]} 37. Kf1 {[%clk 0:00:24]}  Kg7 {[%clk 0:00:06]} 38. Qb4 {[%clk 0:00:21]}  Qc6 {[%clk 0:00:05]} 39. Qb3 {[%clk 0:00:20]}  Qd5 {[%clk 0:00:05]} 40. Qb4 {[%clk 0:00:20]}  Qc6 {[%clk 0:00:05]} 41. Kg2 {[%clk 0:00:20]}  Qd5 {[%clk 0:00:05]} 42. Qc5 {[%clk 0:00:20]}  Kg8 {[%clk 0:00:05]} 43. Qxd5 {[%clk 0:00:19]}  exd5 {[%clk 0:00:05]} 44. f3 {[%clk 0:00:20]}  exf3+ {[%clk 0:00:04]} 45. Kxf3 {[%clk 0:00:21]}  Kf8 {[%clk 0:00:05]} 46. Bf2 {[%clk 0:00:22]}  Ke7 {[%clk 0:00:05]} 47. e4 {[%clk 0:00:22]}  Ke6 {[%clk 0:00:05]} 48. Ke3 {[%clk 0:00:21]}  Be7 {[%clk 0:00:05]} 49. Kd3 {[%clk 0:00:22]}  Bd6 {[%clk 0:00:05]} 50. Be3 {[%clk 0:00:22]}  Bc7 {[%clk 0:00:05]} 51. Bf2 {[%clk 0:00:22]}  f6 {[%clk 0:00:05]} 52. h4 {[%clk 0:00:21]}  Bf4 {[%clk 0:00:04]} 53. h5 {[%clk 0:00:20]}  Bd6 {[%clk 0:00:04]} 54. Be1 {[%clk 0:00:20]}  Be7 {[%clk 0:00:04]} 55. Ba5 {[%clk 0:00:20]}  Bf8 {[%clk 0:00:02]} 56. Bd8 {[%clk 0:00:20]}  Bg7 {[%clk 0:00:02]} 57. exd5+ {[%clk 0:00:20]}  Kxd5 {[%clk 0:00:02]} 58. Be7 {[%clk 0:00:20]}  f5 {[%clk 0:00:02]} 59. gxf5 {[%clk 0:00:21]}  Bxd4 {[%clk 0:00:01]} 60. Bf8 {[%clk 0:00:18]}  Bf6 {[%clk 0:00:01]} 61. Bxh6 {[%clk 0:00:13]}  Ke5 {[%clk 0:00:01]} 62. Bf8 {[%clk 0:00:12]}  Kxf5 {[%clk 0:00:02]} 63. h6 {[%clk 0:00:13]}  Kg6 {[%clk 0:00:02]} 64. Ke4 {[%clk 0:00:13]}  g4 {[%clk 0:00:02]} 65. Kf4 {[%clk 0:00:13]}  Bg5+ {[%clk 0:00:03]} 66. Kxg4 {[%clk 0:00:13]}  Bxh6 {[%clk 0:00:04]} 1/2-1/2


[Site "https://www.chess.com"]

[Event "Titled Tuesday Blitz May 18 2021"]
[White "Blohberger, Felix"]
[Black "Grandelius, Nils"]
[WhiteFideId "1632051"]
[BlackFideId "1710400"]
[WhiteElo "2434"]
[BlackElo "2651"]
[Result "0-1"]
[Round "07"]
[TimeControl "180+1"]
[Date "2021.05.18"]
[WhiteClock "0:00:01"]
[BlackClock "0:00:30"]

1. Nf3 {[%clk 0:03:00]}  d5 {[%clk 0:02:59]} 2. d4 {[%clk 0:02:58]}  e6 {[%clk 0:02:59]} 3. c4 {[%clk 0:02:58]}  a6 {[%clk 0:02:59]} 4. Nbd2 {[%clk 0:02:57]}  Nf6 {[%clk 0:02:55]} 5. g3 {[%clk 0:02:48]}  c5 {[%clk 0:02:56]} 6. cxd5 {[%clk 0:02:46]}  exd5 {[%clk 0:02:56]} 7. Bg2 {[%clk 0:02:46]}  Nc6 {[%clk 0:02:56]} 8. O-O {[%clk 0:02:46]}  h6 {[%clk 0:02:53]} 9. a3 {[%clk 0:02:21]}  Bf5 {[%clk 0:02:23]} 10. dxc5 {[%clk 0:02:18]}  Bxc5 {[%clk 0:02:24]} 11. b4 {[%clk 0:02:18]}  Ba7 {[%clk 0:02:20]} 12. Bb2 {[%clk 0:02:17]}  O-O {[%clk 0:02:19]} 13. Nb3 {[%clk 0:02:17]}  Ne4 {[%clk 0:02:18]} 14. Rc1 {[%clk 0:02:16]}  Rc8 {[%clk 0:02:14]} 15. Nc5 {[%clk 0:02:06]}  Nxc5 {[%clk 0:02:06]} 16. bxc5 {[%clk 0:02:07]}  Be4 {[%clk 0:01:56]} 17. Qb3 {[%clk 0:01:51]}  Qe7 {[%clk 0:01:16]} 18. Rfd1 {[%clk 0:01:32]}  Rfe8 {[%clk 0:01:14]} 19. e3 {[%clk 0:01:30]}  Kh8 {[%clk 0:00:55]} 20. Qc3 {[%clk 0:01:27]}  f6 {[%clk 0:00:54]} 21. Nh4 {[%clk 0:01:21]}  Qf7 {[%clk 0:00:54]} 22. Bxe4 {[%clk 0:00:57]}  dxe4 {[%clk 0:00:55]} 23. Nf5 {[%clk 0:00:55]}  Ne5 {[%clk 0:00:48]} 24. Nd6 {[%clk 0:00:28]}  Qh5 {[%clk 0:00:47]} 25. Nxe8 {[%clk 0:00:15]}  Rxe8 {[%clk 0:00:39]} 26. Kf1 {[%clk 0:00:07]}  Qxh2 {[%clk 0:00:35]} 27. Ke2 {[%clk 0:00:03]}  Qh5+ {[%clk 0:00:34]} 28. Kd2 {[%clk 0:00:03]}  Nd3 {[%clk 0:00:29]} 29. Rb1 {[%clk 0:00:02]}  Nxf2 {[%clk 0:00:28]} 30. Rf1 {[%clk 0:00:01]}  Rd8+ {[%clk 0:00:29]} 31. Kc2 {[%clk 0:00:01]}  Qe2+ {[%clk 0:00:29]} 32. Kb3 {[%clk 0:00:01]}  Rd3 {[%clk 0:00:30]} 0-1


[Site "https://www.chess.com"]

[Event "Titled Tuesday Blitz May 18 2021"]
[White "Chigaev, Maksim"]
[Black "Annaberdiyev, Babageldi"]
[WhiteFideId "4108116"]
[BlackFideId "14000385"]
[WhiteElo "2646"]
[BlackElo "2332"]
[Result "1-0"]
[Round "07"]
[TimeControl "180+1"]
[Date "2021.05.18"]
[WhiteClock "0:00:05"]
[BlackClock "0:00:05"]

1. Nf3 {[%clk 0:03:00]}  Nf6 {[%clk 0:02:59]} 2. g3 {[%clk 0:02:59]}  g6 {[%clk 0:02:59]} 3. b3 {[%clk 0:02:59]}  Bg7 {[%clk 0:02:59]} 4. Bb2 {[%clk 0:02:59]}  O-O {[%clk 0:02:59]} 5. c4 {[%clk 0:02:59]}  d6 {[%clk 0:02:56]} 6. Bg2 {[%clk 0:02:59]}  e5 {[%clk 0:02:43]} 7. O-O {[%clk 0:02:58]}  Nc6 {[%clk 0:02:40]} 8. d3 {[%clk 0:02:58]}  Re8 {[%clk 0:02:36]} 9. Nc3 {[%clk 0:02:58]}  h6 {[%clk 0:02:31]} 10. Nd2 {[%clk 0:02:52]}  a5 {[%clk 0:02:30]} 11. a3 {[%clk 0:02:51]}  Nd4 {[%clk 0:02:22]} 12. e3 {[%clk 0:02:48]}  Ne6 {[%clk 0:02:23]} 13. b4 {[%clk 0:02:39]}  c6 {[%clk 0:02:21]} 14. b5 {[%clk 0:02:33]}  Bd7 {[%clk 0:02:20]} 15. a4 {[%clk 0:02:32]}  Nc5 {[%clk 0:02:15]} 16. Ba3 {[%clk 0:02:16]}  Rc8 {[%clk 0:01:55]} 17. Qc2 {[%clk 0:02:11]}  Bf5 {[%clk 0:01:52]} 18. Bxc5 {[%clk 0:02:10]}  dxc5 {[%clk 0:01:51]} 19. Nde4 {[%clk 0:02:10]}  Nxe4 {[%clk 0:01:46]} 20. Bxe4 {[%clk 0:02:06]}  Bh3 {[%clk 0:01:42]} 21. Rfd1 {[%clk 0:01:56]}  f5 {[%clk 0:01:34]} 22. Bg2 {[%clk 0:01:55]}  Bxg2 {[%clk 0:01:30]} 23. Kxg2 {[%clk 0:01:55]}  Rf8 {[%clk 0:01:31]} 24. Rab1 {[%clk 0:01:50]}  Qe7 {[%clk 0:01:28]} 25. Ne2 {[%clk 0:01:40]}  h5 {[%clk 0:01:28]} 26. Ng1 {[%clk 0:01:31]}  f4 {[%clk 0:01:24]} 27. Qe2 {[%clk 0:01:28]}  fxg3 {[%clk 0:01:20]} 28. fxg3 {[%clk 0:01:23]}  Rf7 {[%clk 0:01:21]} 29. Nh3 {[%clk 0:01:17]}  Rcf8 {[%clk 0:01:18]} 30. bxc6 {[%clk 0:01:14]}  bxc6 {[%clk 0:01:18]} 31. Rf1 {[%clk 0:01:12]}  e4 {[%clk 0:01:16]} 32. Rxf7 {[%clk 0:01:07]}  Rxf7 {[%clk 0:01:17]} 33. Nf4 {[%clk 0:01:03]}  Kh7 {[%clk 0:01:15]} 34. Rf1 {[%clk 0:00:39]}  Kh6 {[%clk 0:01:04]} 35. h4 {[%clk 0:00:35]}  Rf5 {[%clk 0:01:00]} 36. Qc2 {[%clk 0:00:34]}  Re5 {[%clk 0:00:43]} 37. dxe4 {[%clk 0:00:31]}  Kh7 {[%clk 0:00:44]} 38. Rf2 {[%clk 0:00:25]}  Qe8 {[%clk 0:00:30]} 39. Kf3 {[%clk 0:00:23]}  Re7 {[%clk 0:00:28]} 40. Rd2 {[%clk 0:00:18]}  Be5 {[%clk 0:00:29]} 41. Qd3 {[%clk 0:00:18]}  Qf7 {[%clk 0:00:24]} 42. Kg2 {[%clk 0:00:17]}  Kg7 {[%clk 0:00:21]} 43. Rf2 {[%clk 0:00:16]}  Qe8 {[%clk 0:00:19]} 44. Qd2 {[%clk 0:00:12]}  Bb8 {[%clk 0:00:15]} 45. Qb2+ {[%clk 0:00:12]}  Be5 {[%clk 0:00:13]} 46. Qb6 {[%clk 0:00:12]}  Bd6 {[%clk 0:00:08]} 47. Qxa5 {[%clk 0:00:09]}  Rxe4 {[%clk 0:00:08]} 48. Qc3+ {[%clk 0:00:10]}  Kh7 {[%clk 0:00:07]} 49. Rf3 {[%clk 0:00:05]}  Bxf4 {[%clk 0:00:08]} 50. gxf4 {[%clk 0:00:05]}  Re7 {[%clk 0:00:07]} 51. a5 {[%clk 0:00:05]}  Qa8 {[%clk 0:00:05]} 52. f5 {[%clk 0:00:05]}  Rg7 {[%clk 0:00:05]} 53. f6 {[%clk 0:00:05]}  Rf7 {[%clk 0:00:06]} 54. e4 {[%clk 0:00:04]}  Qd8 {[%clk 0:00:05]} 55. e5 {[%clk 0:00:04]}  Qd1 {[%clk 0:00:05]} 56. Qe3 {[%clk 0:00:04]}  Qd4 {[%clk 0:00:05]} 57. Qxd4 {[%clk 0:00:04]}  cxd4 {[%clk 0:00:05]} 58. e6 {[%clk 0:00:05]} 1-0


[Site "https://www.chess.com"]

[Event "Titled Tuesday Blitz May 18 2021"]
[White "Hansen, Eric"]
[Black "Seo, Jung Min"]
[WhiteFideId "2606771"]
[BlackFideId "1734687"]
[WhiteElo "2568"]
[BlackElo "2486"]
[Result "1-0"]
[Round "07"]
[TimeControl "180+1"]
[Date "2021.05.18"]
[WhiteClock "0:00:35"]
[BlackClock "0:01:25"]

1. e4 {[%clk 0:02:44]}  e5 {[%clk 0:03:00]} 2. Nf3 {[%clk 0:02:42]}  Nf6 {[%clk 0:03:00]} 3. Nxe5 {[%clk 0:02:42]}  d6 {[%clk 0:03:00]} 4. Nf3 {[%clk 0:02:43]}  Nxe4 {[%clk 0:03:01]} 5. Nc3 {[%clk 0:02:43]}  Nf6 {[%clk 0:03:00]} 6. d4 {[%clk 0:02:40]}  d5 {[%clk 0:03:01]} 7. Bd3 {[%clk 0:02:40]}  Bg4 {[%clk 0:03:00]} 8. h3 {[%clk 0:02:40]}  Bh5 {[%clk 0:03:00]} 9. Bg5 {[%clk 0:02:26]}  Be7 {[%clk 0:02:59]} 10. Bxf6 {[%clk 0:02:20]}  Bxf6 {[%clk 0:02:56]} 11. Qe2+ {[%clk 0:02:20]}  Kf8 {[%clk 0:02:51]} 12. g4 {[%clk 0:02:18]}  Bg6 {[%clk 0:02:50]} 13. O-O-O {[%clk 0:02:14]}  c6 {[%clk 0:02:50]} 14. h4 {[%clk 0:02:13]}  Bxd3 {[%clk 0:02:48]} 15. Qxd3 {[%clk 0:02:14]}  Nd7 {[%clk 0:02:45]} 16. Rde1 {[%clk 0:02:02]}  h6 {[%clk 0:02:26]} 17. Kb1 {[%clk 0:01:56]}  g6 {[%clk 0:02:21]} 18. Ne2 {[%clk 0:01:21]}  Kg8 {[%clk 0:02:17]} 19. Nf4 {[%clk 0:01:18]}  Nf8 {[%clk 0:02:15]} 20. h5 {[%clk 0:01:13]}  g5 {[%clk 0:02:14]} 21. Ne2 {[%clk 0:01:08]}  Ne6 {[%clk 0:02:14]} 22. Ng3 {[%clk 0:01:09]}  Qd6 {[%clk 0:02:05]} 23. Nf5 {[%clk 0:01:00]}  Qf4 {[%clk 0:02:04]} 24. Rhg1 {[%clk 0:00:51]}  Ng7 {[%clk 0:01:56]} 25. Ne7+ {[%clk 0:00:42]}  Kf8 {[%clk 0:01:52]} 26. Qa3 {[%clk 0:00:41]}  Bxe7 {[%clk 0:01:31]} 27. Qxe7+ {[%clk 0:00:37]}  Kg8 {[%clk 0:01:31]} 28. Ne5 {[%clk 0:00:38]}  Rf8 {[%clk 0:01:25]} 29. Nd7 {[%clk 0:00:35]} 1-0


[Site "https://www.chess.com"]

[Event "Titled Tuesday Blitz May 18 2021"]
[White "Indjic, Aleksandar"]
[Black "Mirzoev, Azer"]
[WhiteFideId "911925"]
[BlackFideId "13400304"]
[WhiteElo "2643"]
[BlackElo "2525"]
[Result "1-0"]
[Round "07"]
[TimeControl "180+1"]
[Date "2021.05.18"]
[WhiteClock "0:01:22"]
[BlackClock "0:00:30"]

1. d4 {[%clk 0:03:00]}  d5 {[%clk 0:03:00]} 2. c4 {[%clk 0:03:00]}  c6 {[%clk 0:03:01]} 3. Nf3 {[%clk 0:03:00]}  Nf6 {[%clk 0:03:01]} 4. Nc3 {[%clk 0:03:01]}  dxc4 {[%clk 0:03:01]} 5. a4 {[%clk 0:03:01]}  Bf5 {[%clk 0:03:01]} 6. Ne5 {[%clk 0:03:02]}  e6 {[%clk 0:02:59]} 7. f3 {[%clk 0:03:02]}  c5 {[%clk 0:02:59]} 8. e4 {[%clk 0:03:01]}  Bg6 {[%clk 0:02:59]} 9. Be3 {[%clk 0:03:01]}  cxd4 {[%clk 0:02:59]} 10. Qxd4 {[%clk 0:03:02]}  Qxd4 {[%clk 0:02:59]} 11. Bxd4 {[%clk 0:03:03]}  Nfd7 {[%clk 0:02:57]} 12. Nxd7 {[%clk 0:03:04]}  Nxd7 {[%clk 0:02:57]} 13. Bxc4 {[%clk 0:03:05]}  a6 {[%clk 0:02:57]} 14. Kf2 {[%clk 0:03:02]}  Rc8 {[%clk 0:02:57]} 15. Be2 {[%clk 0:03:02]}  Bc5 {[%clk 0:02:53]} 16. Rhd1 {[%clk 0:03:01]}  Ke7 {[%clk 0:02:51]} 17. a5 {[%clk 0:03:00]}  Rhd8 {[%clk 0:02:46]} 18. Na4 {[%clk 0:02:59]}  Bxd4+ {[%clk 0:02:46]} 19. Rxd4 {[%clk 0:03:00]}  f6 {[%clk 0:02:44]} 20. Ke3 {[%clk 0:02:59]}  Be8 {[%clk 0:02:43]} 21. Rb4 {[%clk 0:02:59]}  Rc7 {[%clk 0:02:42]} 22. Rd1 {[%clk 0:02:55]}  Ne5 {[%clk 0:02:32]} 23. Rxd8 {[%clk 0:02:50]}  Kxd8 {[%clk 0:02:32]} 24. Rd4+ {[%clk 0:02:50]}  Ke7 {[%clk 0:02:31]} 25. Nb6 {[%clk 0:02:46]}  Rc2 {[%clk 0:02:07]} 26. Rd2 {[%clk 0:02:28]}  Rxd2 {[%clk 0:02:06]} 27. Kxd2 {[%clk 0:02:28]}  Nc6 {[%clk 0:02:01]} 28. Nc4 {[%clk 0:02:28]}  e5 {[%clk 0:01:51]} 29. Kc3 {[%clk 0:02:27]}  Nd4 {[%clk 0:01:49]} 30. Bd1 {[%clk 0:02:27]}  Bb5 {[%clk 0:01:47]} 31. Ne3 {[%clk 0:02:27]}  Kd6 {[%clk 0:01:41]} 32. Nf5+ {[%clk 0:02:20]}  Nxf5 {[%clk 0:01:40]} 33. exf5 {[%clk 0:02:21]}  Bc6 {[%clk 0:01:35]} 34. b4 {[%clk 0:02:19]}  h6 {[%clk 0:01:35]} 35. Bc2 {[%clk 0:02:18]}  Bd5 {[%clk 0:01:27]} 36. Bd3 {[%clk 0:02:18]}  Bc6 {[%clk 0:01:25]} 37. Be4 {[%clk 0:02:18]}  Bd5 {[%clk 0:00:44]} 38. h4 {[%clk 0:02:16]}  h5 {[%clk 0:00:42]} 39. Bc2 {[%clk 0:02:13]}  Bc6 {[%clk 0:00:41]} 40. Bb3 {[%clk 0:02:13]}  Bd7 {[%clk 0:00:39]} 41. g4 {[%clk 0:02:07]}  Bc6 {[%clk 0:00:37]} 42. Bd1 {[%clk 0:02:06]}  Bd5 {[%clk 0:00:35]} 43. gxh5 {[%clk 0:01:56]}  Bc6 {[%clk 0:00:35]} 44. Kd3 {[%clk 0:01:50]}  Be8 {[%clk 0:00:33]} 45. f4 {[%clk 0:01:49]}  exf4 {[%clk 0:00:31]} 46. Ke4 {[%clk 0:01:22]}  f3 {[%clk 0:00:30]} 47. Bxf3 {[%clk 0:01:22]}  Bc6+ {[%clk 0:00:29]} 48. Kf4 {[%clk 0:01:21]}  Bxf3 {[%clk 0:00:29]} 49. Kxf3 {[%clk 0:01:22]}  Ke5 {[%clk 0:00:29]} 50. Kg4 {[%clk 0:01:23]}  Ke4 {[%clk 0:00:29]} 51. h6 {[%clk 0:01:22]}  gxh6 {[%clk 0:00:29]} 52. Kh5 {[%clk 0:01:22]}  Kxf5 {[%clk 0:00:30]} 53. Kxh6 {[%clk 0:01:23]}  Ke5 {[%clk 0:00:27]} 54. Kg6 {[%clk 0:01:21]}  f5 {[%clk 0:00:27]} 55. h5 {[%clk 0:01:21]}  f4 {[%clk 0:00:28]} 56. h6 {[%clk 0:01:22]}  f3 {[%clk 0:00:29]} 57. h7 {[%clk 0:01:22]}  f2 {[%clk 0:00:30]} 58. h8=Q+ {[%clk 0:01:22]} 1-0


[Site "https://www.chess.com"]

[Event "Titled Tuesday Blitz May 18 2021"]
[White "Maghsoodloo, Parham"]
[Black "Paichadze, Luka"]
[WhiteFideId "12539929"]
[BlackFideId "13602934"]
[WhiteElo "2601"]
[BlackElo "2537"]
[Result "1-0"]
[Round "07"]
[TimeControl "180+1"]
[Date "2021.05.18"]
[WhiteClock "0:01:24"]
[BlackClock "0:00:02"]

1. e4 {[%clk 0:03:00]}  c6 {[%clk 0:03:00]} 2. Nc3 {[%clk 0:03:00]}  d5 {[%clk 0:03:00]} 3. Nf3 {[%clk 0:02:59]}  g6 {[%clk 0:03:00]} 4. h3 {[%clk 0:02:56]}  Bg7 {[%clk 0:02:59]} 5. d4 {[%clk 0:02:57]}  Nh6 {[%clk 0:02:59]} 6. Bd3 {[%clk 0:02:55]}  O-O {[%clk 0:02:58]} 7. O-O {[%clk 0:02:55]}  f6 {[%clk 0:02:58]} 8. Re1 {[%clk 0:02:54]}  Nf7 {[%clk 0:02:58]} 9. Bf4 {[%clk 0:02:51]}  e5 {[%clk 0:02:56]} 10. dxe5 {[%clk 0:02:50]}  fxe5 {[%clk 0:02:57]} 11. Bg3 {[%clk 0:02:50]}  d4 {[%clk 0:02:57]} 12. Nb1 {[%clk 0:02:50]}  Be6 {[%clk 0:02:54]} 13. c3 {[%clk 0:02:50]}  c5 {[%clk 0:02:52]} 14. Na3 {[%clk 0:02:49]}  Nc6 {[%clk 0:02:50]} 15. Bc4 {[%clk 0:02:49]}  Qd7 {[%clk 0:02:48]} 16. Qb3 {[%clk 0:02:47]}  Rfe8 {[%clk 0:02:46]} 17. Bxe6 {[%clk 0:02:44]}  Rxe6 {[%clk 0:02:47]} 18. Nc4 {[%clk 0:02:44]}  h6 {[%clk 0:02:20]} 19. a4 {[%clk 0:02:43]}  Kh7 {[%clk 0:02:19]} 20. a5 {[%clk 0:02:35]}  Nd6 {[%clk 0:02:13]} 21. Nfd2 {[%clk 0:02:34]}  Rf8 {[%clk 0:02:05]} 22. f3 {[%clk 0:02:32]}  Nf7 {[%clk 0:01:58]} 23. Qb5 {[%clk 0:02:25]}  Rc8 {[%clk 0:01:49]} 24. Qxc5 {[%clk 0:02:24]}  dxc3 {[%clk 0:01:48]} 25. bxc3 {[%clk 0:02:23]}  Nd4 {[%clk 0:01:48]} 26. Qd5 {[%clk 0:02:24]}  Qe7 {[%clk 0:01:21]} 27. cxd4 {[%clk 0:02:23]}  exd4 {[%clk 0:01:22]} 28. e5 {[%clk 0:02:22]}  Rd8 {[%clk 0:01:14]} 29. Qe4 {[%clk 0:02:22]}  Rc6 {[%clk 0:01:12]} 30. f4 {[%clk 0:02:18]}  Qe6 {[%clk 0:01:11]} 31. Qd3 {[%clk 0:02:18]}  Rd5 {[%clk 0:01:03]} 32. Rab1 {[%clk 0:02:17]}  Nd8 {[%clk 0:01:02]} 33. Nd6 {[%clk 0:02:16]}  b6 {[%clk 0:00:59]} 34. axb6 {[%clk 0:02:15]}  axb6 {[%clk 0:00:56]} 35. N2e4 {[%clk 0:02:14]}  Ra5 {[%clk 0:00:35]} 36. Bf2 {[%clk 0:02:11]}  Ra2 {[%clk 0:00:34]} 37. Bxd4 {[%clk 0:02:08]}  Rcc2 {[%clk 0:00:34]} 38. Bf2 {[%clk 0:02:06]}  Nc6 {[%clk 0:00:20]} 39. Ra1 {[%clk 0:01:50]}  Rab2 {[%clk 0:00:20]} 40. Reb1 {[%clk 0:01:50]}  Nb4 {[%clk 0:00:20]} 41. Qf3 {[%clk 0:01:47]}  Nd5 {[%clk 0:00:17]} 42. Rxb2 {[%clk 0:01:47]}  Rxb2 {[%clk 0:00:18]} 43. Ra7 {[%clk 0:01:47]}  Kh8 {[%clk 0:00:14]} 44. Nf7+ {[%clk 0:01:45]}  Kg8 {[%clk 0:00:14]} 45. Neg5 {[%clk 0:01:44]}  hxg5 {[%clk 0:00:14]} 46. Nxg5 {[%clk 0:01:45]}  Qc6 {[%clk 0:00:13]} 47. Qe4 {[%clk 0:01:43]}  Qc1+ {[%clk 0:00:12]} 48. Be1 {[%clk 0:01:38]}  Qe3+ {[%clk 0:00:12]} 49. Qxe3 {[%clk 0:01:37]}  Nxe3 {[%clk 0:00:13]} 50. Bf2 {[%clk 0:01:38]}  Rb1+ {[%clk 0:00:12]} 51. Be1 {[%clk 0:01:37]}  Rxe1+ {[%clk 0:00:11]} 52. Kf2 {[%clk 0:01:38]}  Nc2 {[%clk 0:00:11]} 53. Rc7 {[%clk 0:01:37]}  Bxe5 {[%clk 0:00:11]} 54. Rxc2 {[%clk 0:01:26]}  Bxf4 {[%clk 0:00:09]} 55. Kxe1 {[%clk 0:01:26]}  Bxg5 {[%clk 0:00:10]} 56. Rc6 {[%clk 0:01:26]}  Kf7 {[%clk 0:00:09]} 57. Rxb6 {[%clk 0:01:26]}  Bf4 {[%clk 0:00:08]} 58. Ke2 {[%clk 0:01:26]}  Kg7 {[%clk 0:00:09]} 59. Kf3 {[%clk 0:01:26]}  Be5 {[%clk 0:00:07]} 60. h4 {[%clk 0:01:26]}  Kh6 {[%clk 0:00:08]} 61. g4 {[%clk 0:01:24]}  Kg7 {[%clk 0:00:05]} 62. g5 {[%clk 0:01:24]}  Bc3 {[%clk 0:00:04]} 63. Kg4 {[%clk 0:01:24]}  Bd4 {[%clk 0:00:04]} 64. Rb7+ {[%clk 0:01:22]}  Kg8 {[%clk 0:00:03]} 65. h5 {[%clk 0:01:23]}  gxh5+ {[%clk 0:00:03]} 66. Kxh5 {[%clk 0:01:23]}  Bc3 {[%clk 0:00:03]} 67. Kh6 {[%clk 0:01:24]}  Bd4 {[%clk 0:00:03]} 68. Rb8+ {[%clk 0:01:24]}  Kf7 {[%clk 0:00:02]} 69. g6+ {[%clk 0:01:24]} 1-0


[Site "https://www.chess.com"]

[Event "Titled Tuesday Blitz May 18 2021"]
[White "Morefield, Jason"]
[Black "Onyshchuk, Volodymyr"]
[WhiteFideId "30920825"]
[BlackFideId "14114038"]
[WhiteElo "2171"]
[BlackElo "2605"]
[Result "1-0"]
[Round "07"]
[TimeControl "180+1"]
[Date "2021.05.18"]
[WhiteClock "0:00:06"]
[BlackClock "0:00:11"]

1. d4 {[%clk 0:03:00]}  d6 {[%clk 0:02:59]} 2. Nf3 {[%clk 0:02:58]}  Nf6 {[%clk 0:02:59]} 3. c4 {[%clk 0:02:57]}  g6 {[%clk 0:03:00]} 4. Nc3 {[%clk 0:02:58]}  Bg7 {[%clk 0:03:00]} 5. e4 {[%clk 0:02:58]}  O-O {[%clk 0:03:01]} 6. Be2 {[%clk 0:02:58]}  Nbd7 {[%clk 0:02:58]} 7. O-O {[%clk 0:02:49]}  e5 {[%clk 0:02:59]} 8. Be3 {[%clk 0:02:48]}  c6 {[%clk 0:02:58]} 9. Qc2 {[%clk 0:02:47]}  Qe7 {[%clk 0:02:58]} 10. Rad1 {[%clk 0:02:44]}  b6 {[%clk 0:02:57]} 11. h3 {[%clk 0:02:29]}  Bb7 {[%clk 0:02:57]} 12. Bd3 {[%clk 0:02:15]}  a6 {[%clk 0:02:48]} 13. Rfe1 {[%clk 0:01:57]}  exd4 {[%clk 0:02:43]} 14. Nxd4 {[%clk 0:01:55]}  Ne5 {[%clk 0:02:43]} 15. Bf1 {[%clk 0:01:53]}  c5 {[%clk 0:02:42]} 16. Nb3 {[%clk 0:01:51]}  Rfe8 {[%clk 0:02:38]} 17. Bf4 {[%clk 0:01:44]}  Rad8 {[%clk 0:02:31]} 18. Bg3 {[%clk 0:01:35]}  Qc7 {[%clk 0:02:30]} 19. Nd2 {[%clk 0:01:31]}  Nc6 {[%clk 0:02:29]} 20. Nf3 {[%clk 0:01:26]}  Ne5 {[%clk 0:01:54]} 21. Nxe5 {[%clk 0:01:26]}  dxe5 {[%clk 0:01:53]} 22. Nd5 {[%clk 0:01:27]}  Bxd5 {[%clk 0:01:45]} 23. cxd5 {[%clk 0:01:23]}  b5 {[%clk 0:01:45]} 24. a4 {[%clk 0:01:23]}  c4 {[%clk 0:01:43]} 25. axb5 {[%clk 0:01:21]}  axb5 {[%clk 0:01:43]} 26. b3 {[%clk 0:01:20]}  Rc8 {[%clk 0:01:23]} 27. Ra1 {[%clk 0:00:59]}  Nh5 {[%clk 0:01:18]} 28. Bh2 {[%clk 0:00:57]}  Qc5 {[%clk 0:01:10]} 29. Ra6 {[%clk 0:00:48]}  c3 {[%clk 0:01:08]} 30. Ra5 {[%clk 0:00:42]}  Rb8 {[%clk 0:01:07]} 31. Rc1 {[%clk 0:00:26]}  Rec8 {[%clk 0:01:06]} 32. Qd3 {[%clk 0:00:26]}  Nf4 {[%clk 0:00:58]} 33. Bxf4 {[%clk 0:00:20]}  exf4 {[%clk 0:00:58]} 34. Rxb5 {[%clk 0:00:21]}  Rxb5 {[%clk 0:00:55]} 35. Qxb5 {[%clk 0:00:22]}  Qa3 {[%clk 0:00:53]} 36. Rc2 {[%clk 0:00:22]}  Bd4 {[%clk 0:00:52]} 37. Qa4 {[%clk 0:00:16]}  Qc5 {[%clk 0:00:40]} 38. Qb5 {[%clk 0:00:14]}  Qa7 {[%clk 0:00:38]} 39. d6 {[%clk 0:00:12]}  Rd8 {[%clk 0:00:36]} 40. Qd5 {[%clk 0:00:11]}  Rc8 {[%clk 0:00:21]} 41. d7 {[%clk 0:00:10]}  Rd8 {[%clk 0:00:19]} 42. Bb5 {[%clk 0:00:10]}  Qb6 {[%clk 0:00:18]} 43. e5 {[%clk 0:00:10]}  Bxf2+ {[%clk 0:00:17]} 44. Rxf2 {[%clk 0:00:06]}  c2 {[%clk 0:00:17]} 45. Qc4 {[%clk 0:00:06]}  c1=Q+ {[%clk 0:00:13]} 46. Qxc1 {[%clk 0:00:06]}  Qxb5 {[%clk 0:00:14]} 47. Qxf4 {[%clk 0:00:06]}  Rxd7 {[%clk 0:00:13]} 48. e6 {[%clk 0:00:06]}  Re7 {[%clk 0:00:11]} 49. exf7+ {[%clk 0:00:06]}  Kf8 {[%clk 0:00:11]} 50. Qh6# {[%clk 0:00:06]} 1-0


[Site "https://www.chess.com"]